fUSD/lending_fUSD_20250314
["ID","MTS","AMOUNT","RATE_DAILY","PERIOD"]
[356131331,1741936904854,-500.0,0.00022027,3]
[356131332,1741936904883,-500.0,0.00022027,3]
[356131333,1741936904910,-598.2318998,0.00022027,3]
[356131334,1741936904938,-500.0,0.00022027,3]
[356131335,1741936904967,-500.0,0.00022027,3]
[356131336,1741936904997,-614.74,0.00022027,3]
[356131337,1741936905026,-977.71,0.00022027,3]
[356131338,1741936905055,-415.43259762,0.00022027,2]
[356131339,1741936905083,-500.0,0.00022027,3]
[356131340,1741936905111,-500.0,0.00022027,3]
[356131341,1741936905138,-1144.59,0.00022027,3]
[356131342,1741936905166,-500.0,0.00022027,3]
[356131343,1741936905193,-828.55,0.00022027,3]
[356131344,1741936905221,-500.0,0.00022027,3]
[356131345,1741936905248,-523.87,0.00022027,3]
[356131346,1741936905276,-565.79,0.00022027,3]
[356131347,1741936905303,-602.5,0.00022027,3]
[356131348,1741936905330,-500.0,0.00022027,3]
[356131349,1741936905358,-500.0,0.00022027,3]
[356131350,1741936905385,-500.0,0.00022027,3]
[356131351,1741936905413,-500.0,0.00022027,3]
[356131352,1741936905440,-500.0,0.00022027,3]
[356131353,1741936905468,-1550.67,0.00022027,3]
[356131354,1741936905496,-500.0,0.00022027,3]
[356131355,1741936905525,-500.0,0.00022027,3]
[356131356,1741936905553,-700.51,0.00022027,3]
[356131357,1741936905580,-500.0,0.00022027,3]
[356131358,1741936905607,-500.0,0.00022027,3]
[356131359,1741936905636,-500.0,0.00022027,3]
[356131360,1741936905663,-500.0,0.00022027,3]
[356131361,1741936905694,-500.0,0.00022027,3]
[356131362,1741936905722,-500.0,0.00022027,3]
[356131363,1741936905751,-687.0,0.00022027,3]
[356131364,1741936905779,-500.0,0.00022027,3]
[356131365,1741936905808,-500.0,0.00022027,3]
[356131366,1741936905837,-500.0,0.00022027,3]
[356131367,1741936905866,-500.0,0.00022027,3]
[356131368,1741936905893,-500.0,0.00022027,3]
[356131369,1741936905920,-500.0,0.00022027,3]
[356131370,1741936905948,-500.0,0.00022027,3]
[356131371,1741936905975,-500.0,0.00022027,3]
[356131372,1741936906003,-500.0,0.00022027,3]
[356131373,1741936906033,-500.0,0.00022027,3]
[356131374,1741936906061,-500.0,0.00022027,3]
[356131375,1741936906089,-817.75,0.00022027,3]
[356131376,1741936906117,-500.0,0.00022027,3]
[356131377,1741936906144,-820.47,0.00022027,3]
[356131378,1741936906173,-713.63,0.00022027,3]
[356131379,1741936906201,-151.0,0.00022027,7]
[356131380,1741936906229,-500.0,0.00022027,3]
[356131381,1741936906258,-500.0,0.00022027,3]
[356131382,1741936906288,-500.0,0.00022027,3]
[356131383,1741936906317,-500.0,0.00022027,3]
[356131384,1741936906344,-500.0,0.00022027,3]
[356131385,1741936906374,-500.0,0.00022027,3]
[356131386,1741936906590,-500.0,0.00022027,3]
[356131387,1741936906620,-500.0,0.00022027,3]
[356131388,1741936906649,-996.86,0.00022027,3]
[356131389,1741936906681,-500.0,0.00022027,3]
[356131390,1741936906711,-500.0,0.00022027,3]
[356131391,1741936906740,-1317.11,0.00022027,3]
[356131392,1741936906771,-500.0,0.00022027,3]
[356131393,1741936906801,-500.0,0.00022027,3]
[356131394,1741936906829,-1005.89,0.00022027,3]
[356131395,1741936906859,-500.0,0.00022027,3]
[356131396,1741936906888,-500.0,0.00022027,3]
[356131397,1741936906918,-500.0,0.00022027,3]
[356131398,1741936906948,-500.0,0.00022027,3]
[356131399,1741936906977,-500.0,0.00022027,3]
[356131400,1741936907006,-547.37,0.00022027,3]
[356131401,1741936907034,-500.0,0.00022027,3]
[356131402,1741936907063,-500.0,0.00022027,3]
[356131403,1741936907091,-527.11,0.00022027,3]
[356131404,1741936907122,-500.0,0.00022027,3]
[356131405,1741936907151,-500.0,0.00022027,3]
[356131406,1741936907180,-500.0,0.00022027,3]
[356131407,1741936907208,-500.0,0.00022027,3]
[356131408,1741936907236,-500.0,0.00022027,3]
[356131409,1741936907265,-500.0,0.00022027,3]
[356131410,1741936907293,-669.94,0.00022027,3]
[356131411,1741936907320,-500.0,0.00022027,3]
[356131412,1741936907349,-500.0,0.00022027,3]
[356131413,1741936907378,-500.0,0.00022027,3]
[356131414,1741936907406,-1385.58,0.00022027,3]
[356131415,1741936907433,-500.0,0.00022027,3]
[356131416,1741936907460,-500.0,0.00022027,3]
[356131417,1741936907488,-443.30163134,0.00022027,3]
[356131418,1741936907518,-500.0,0.00022027,3]
[356131419,1741936907547,-500.0,0.00022027,3]
[356131420,1741936907575,-500.0,0.00022027,3]
[356131421,1741936907604,-500.0,0.00022027,3]
[356131422,1741936907633,-677.48,0.00022027,3]
[356131423,1741936907663,-500.0,0.00022027,3]
[356131424,1741936907695,-500.0,0.00022027,3]
[356131425,1741936907724,-517.91,0.00022027,3]
[356131426,1741936907756,-500.0,0.00022027,3]
[356131427,1741936907786,-797.96,0.00022027,3]
[356131428,1741936907825,-500.0,0.00022027,3]
[356131429,1741936907856,-536.18,0.00022027,3]
[356131430,1741936907884,-500.0,0.00022027,3]
[356131431,1741936907912,-500.0,0.00022027,3]
[356131432,1741936907939,-558.34,0.00022027,3]
[356131433,1741936907967,-500.0,0.00022027,3]
[356131434,1741936907996,-537.35,0.00022027,3]
[356131435,1741936908028,-500.0,0.00022027,3]
[356131436,1741936908058,-643.93,0.00022027,3]
[356131437,1741936908087,-500.0,0.00022027,3]
[356131438,1741936908117,-500.0,0.00022027,3]
[356131439,1741936908145,-500.0,0.00022027,3]
[356131440,1741936908174,-500.0,0.00022027,3]
[356131441,1741936908204,-500.0,0.00022027,3]
[356131442,1741936908234,-500.0,0.00022027,3]
[356131443,1741936908267,-500.0,0.00022027,3]
[356131444,1741936908296,-212.0839951,0.00022027,3]
[356131445,1741936908324,-500.0,0.00022027,3]
[356131446,1741936908352,-534.15,0.00022027,3]
[356131447,1741936908380,-500.0,0.00022027,3]
[356131448,1741936908408,-849.01,0.00022027,3]
[356131449,1741936908435,-500.0,0.00022027,3]
[356131450,1741936908463,-500.0,0.00022027,2]
[356131451,1741936908490,-151.0,0.00022027,7]
[356131452,1741936908518,-500.0,0.00022027,3]
[356131453,1741936908547,-500.0,0.00022027,3]
[356131454,1741936908574,-856.19,0.00022027,3]
[356131455,1741936908602,-500.0,0.00022027,3]
[356131456,1741936908630,-1041.65,0.00022027,3]
[356131457,1741936908658,-500.0,0.00022027,3]
[356131458,1741936908690,-983.66,0.00022027,3]
[356131459,1741936908717,-500.0,0.00022027,3]
[356131460,1741936908744,-500.0,0.00022027,3]
[356131461,1741936908776,-735.35,0.00022027,3]
[356131462,1741936908805,-666.51,0.00022027,3]
[356131463,1741936908834,-500.0,0.00022027,3]
[356131464,1741936908863,-500.0,0.00022027,3]
[356131465,1741936908892,-787.16,0.00022027,3]
[356131466,1741936908921,-1295.98,0.00022027,3]
[356131467,1741936908949,-500.0,0.00022027,3]
[356131468,1741936908977,-500.0,0.00022027,3]
[356131469,1741936909005,-1289.57,0.00022027,3]
[356131470,1741936909034,-1037.78,0.00022027,3]
[356131471,1741936909064,-1084.8,0.00022027,3]
[356131472,1741936909094,-500.0,0.00022027,3]
[356131473,1741936909125,-500.0,0.00022027,3]
[356131474,1741936909156,-713.92,0.00022027,3]
[356131475,1741936909185,-500.0,0.00022027,3]
[356131476,1741936909216,-500.0,0.00022027,3]
[356131477,1741936909247,-770.02,0.00022027,3]
[356131478,1741936909276,-500.0,0.00022027,3]
[356131479,1741936909306,-151.0,0.00022027,7]
[356131480,1741936909335,-500.0,0.00022027,3]
[356131481,1741936909364,-500.0,0.00022027,3]
[356131482,1741936909394,-500.0,0.00022027,3]
[356131483,1741936909424,-1013.77,0.00022027,3]
[356131484,1741936909454,-151.0,0.00022027,7]
[356131485,1741936909483,-500.0,0.00022027,3]
[356131486,1741936909514,-500.0,0.00022027,3]
[356131487,1741936909543,-500.0,0.00022027,3]
[356131488,1741936909571,-500.0,0.00022027,3]
[356131489,1741936909600,-746.99,0.00022027,3]
[356131490,1741936909628,-500.0,0.00022027,3]
[356131491,1741936909656,-500.0,0.00022027,3]
[356131492,1741936909687,-662.9,0.00022027,3]
[356131493,1741936909716,-500.0,0.00022027,3]
[356131494,1741936909745,-500.0,0.00022027,3]
[356131495,1741936909775,-772.07,0.00022027,3]
[356131496,1741936909803,-500.0,0.00022027,3]
[356131497,1741936909831,-500.0,0.00022027,3]
[356131498,1741936909860,-192.144422,0.00022027,7]
[356131499,1741936909889,-557.6,0.00022027,3]
[356131500,1741936909917,-916.26,0.00022027,3]
[356131501,1741936909945,-651.4,0.00022027,3]
[356131502,1741936909973,-500.0,0.00022027,3]
[356131503,1741936910001,-500.0,0.00022027,3]
[356131504,1741936910030,-500.0,0.00022027,3]
[356131505,1741936910243,-500.0,0.00022027,3]
[356131506,1741936910272,-500.0,0.00022027,3]
[356131507,1741936910300,-651.11,0.00022027,3]
[356131508,1741936910328,-500.0,0.00022027,3]
[356131509,1741936910355,-500.0,0.00022027,3]
[356131510,1741936910383,-1360.83,0.00022027,3]
[356131511,1741936910410,-500.0,0.00022027,3]
[356131512,1741936910438,-500.0,0.00022027,3]
[356131513,1741936910466,-500.0,0.00022027,3]
[356131514,1741936910492,-500.0,0.00022027,3]
[356131515,1741936910520,-500.0,0.00022027,3]
[356131516,1741936910548,-151.0,0.00022027,7]
[356131517,1741936910577,-655.53,0.00022027,3]
[356131518,1741936910605,-598.3,0.00022027,3]
[356131519,1741936910632,-1138.98,0.00022027,3]
[356131520,1741936910660,-500.0,0.00022027,3]
[356131521,1741936910693,-500.0,0.00022027,3]
[356131522,1741936910723,-640.1,0.00022027,3]
[356131523,1741936910751,-1232.74,0.00022027,3]
[356131524,1741936910780,-500.0,0.00022027,3]
[356131525,1741936910808,-500.0,0.00022027,3]
[356131526,1741936910836,-500.0,0.00022027,3]
[356131527,1741936910866,-500.0,0.00022027,3]
[356131528,1741936910894,-500.0,0.00022027,3]
[356131529,1741936910921,-500.0,0.00022027,3]
[356131530,1741936910949,-500.0,0.00022027,3]
[356131531,1741936910976,-600.89,0.00022027,3]
[356131532,1741936911005,-500.0,0.00022027,3]
[356131533,1741936911032,-500.0,0.00022027,3]
[356131534,1741936911059,-500.0,0.00022027,3]
[356131535,1741936911087,-500.0,0.00022027,3]
[356131536,1741936911113,-500.0,0.00022027,3]
[356131537,1741936911139,-942.36,0.00022027,3]
[356131538,1741936911168,-500.0,0.00022027,3]
[356131539,1741936911197,-500.0,0.00022027,3]
[356131540,1741936911226,-1002.37,0.00022027,3]
[356131541,1741936911254,-541.20375148,0.00022027,3]
[356131542,1741936911282,-500.0,0.00022027,3]
[356131543,1741936911310,-636.71,0.00022027,3]
[356131544,1741936911338,-527.1,0.00022027,3]
[356131545,1741936911366,-500.0,0.00022027,3]
[356131546,1741936911394,-507.91,0.00022027,3]
[356131547,1741936911421,-1121.93,0.00022027,3]
[356131548,1741936911448,-738.18,0.00022027,3]
[356131549,1741936911476,-338.77556578,0.00022027,3]
[356131550,1741936911502,-1082.27,0.00022027,3]
[356131551,1741936911530,-501.07,0.00022027,3]
[356131552,1741936911557,-520.37720489,0.00022027,3]
[356131553,1741936911585,-500.0,0.00022027,3]
[356131554,1741936911613,-792.57,0.00022027,3]
[356131555,1741936911640,-646.68,0.00022027,3]
[356131556,1741936911668,-500.0,0.00022027,3]
[356131557,1741936911699,-1237.94,0.00022027,3]
[356131558,1741936911728,-501.06,0.00022027,3]
[356131559,1741936911758,-809.56,0.00022027,3]
[356131560,1741936911786,-1440.13,0.00022027,3]
[356131561,1741936911815,-500.0,0.00022027,3]
[356131562,1741936911844,-512.92,0.00022027,3]
[356131563,1741936911872,-574.09,0.00022027,3]
[356131564,1741936911900,-500.0,0.00022027,3]
[356131565,1741936911928,-534.47,0.00022027,3]
[356131566,1741936911955,-500.0,0.00022027,3]
[356131567,1741936911983,-500.0,0.00022027,3]
[356131568,1741936912012,-500.0,0.00022027,3]
[356131569,1741936912047,-173.534334,0.00022027,7]
[356131570,1741936912077,-500.0,0.00022027,3]
[356131571,1741936912107,-500.0,0.00022027,3]
[356131572,1741936912138,-173.534334,0.00022027,7]
[356131573,1741936912170,-500.0,0.00022027,3]
[356131574,1741936912199,-500.0,0.00022027,3]
[356131575,1741936912229,-500.0,0.00022027,3]
[356131576,1741936912259,-500.0,0.00022027,3]
[356131577,1741936912289,-500.0,0.00022027,3]
[356131578,1741936912318,-500.0,0.00022027,3]
[356131579,1741936912347,-500.0,0.00022027,3]
[356131580,1741936912377,-500.0,0.00022027,3]
[356131581,1741936912406,-500.0,0.00022027,3]
[356131582,1741936912436,-1070.2,0.00022027,3]
[356131583,1741936912465,-500.0,0.00022027,3]
[356131584,1741936912495,-2035.33,0.00022027,3]
[356131585,1741936912527,-1063.85,0.00022027,3]
[356131586,1741936912562,-1106.92,0.00022027,3]
[356131587,1741936912592,-500.0,0.00022027,3]
[356131588,1741936912622,-957.68,0.00022027,3]
[356131589,1741936912656,-500.0,0.00022027,3]
[356131590,1741936912688,-500.0,0.00022027,3]
[356131591,1741936912718,-508.6481884,0.00022027,3]
[356131592,1741936912747,-500.0,0.00022027,3]
[356131593,1741936912778,-500.0,0.00022027,3]
[356131594,1741936912807,-749.54,0.00022027,3]
[356131595,1741936912836,-500.0,0.00022027,3]
[356131596,1741936912866,-500.0,0.00022027,3]
[356131597,1741936912895,-500.0,0.00022027,3]
[356131598,1741936912925,-900.62,0.00022027,3]
[356131599,1741936912954,-1183.4,0.00022027,3]
[356131600,1741936912983,-500.0,0.00022027,3]
[356131601,1741936913012,-354.897348,0.00022027,7]
[356131602,1741936913041,-2463.06,0.00022027,3]
[356131603,1741936913071,-354.897348,0.00022027,7]
[356131604,1741936913100,-500.0,0.00022027,3]
[356131605,1741936913128,-500.0,0.00022027,3]
[356131606,1741936913156,-907.67,0.00022027,3]
[356131607,1741936913184,-1751.54,0.00022027,3]
[356131608,1741936913213,-659.53,0.00022027,3]
[356131609,1741936913242,-500.0,0.00022027,3]
[356131610,1741936913276,-500.0,0.00022027,3]
[356131611,1741936913306,-500.0,0.00022027,3]
[356131612,1741936913334,-500.0,0.00022027,3]
[356131613,1741936913363,-638.1,0.00022027,3]
[356131614,1741936913392,-576.08,0.00022027,3]
[356131615,1741936913420,-500.0,0.00022027,3]
[356131616,1741936913447,-500.0,0.00022027,3]
[356131617,1741936913476,-500.0,0.00022027,3]
[356131618,1741936913504,-605.51,0.00022027,3]
[356131619,1741936913533,-500.0,0.00022027,3]
[356131620,1741936913777,-500.0,0.00022027,3]
[356131621,1741936913806,-500.0,0.00022027,3]
[356131622,1741936913836,-500.0,0.00022027,3]
[356131623,1741936913864,-500.0,0.00022027,3]
[356131624,1741936913892,-626.879335,0.00022027,7]
[356131625,1741936913920,-500.0,0.00022027,3]
[356131626,1741936913962,-626.879335,0.00022027,7]
[356131627,1741936913994,-500.0,0.00022027,3]
[356131628,1741936914026,-1270.52,0.00022027,3]
[356131629,1741936914057,-500.0,0.00022027,2]
[356131630,1741936914086,-151.0,0.00022039,7]
[356131631,1741936914116,-151.0,0.00022039,7]
[356131632,1741936914146,-500.0,0.00022054,3]
[356131633,1741936914175,-485.53958165,0.00022054,3]
[356131634,1741936914204,-500.0,0.00022054,3]
[356131635,1741936914234,-500.0,0.00022054,3]
[356131636,1741936914263,-824.92,0.00022054,3]
[356131637,1741936914292,-563.47,0.00022054,3]
[356131638,1741936914321,-500.0,0.00022054,3]
[356131639,1741936914350,-500.0,0.00022054,3]
[356131640,1741936914379,-500.0,0.00022054,3]
[356131641,1741936914408,-500.0,0.00022054,3]
[356131642,1741936914437,-682.16,0.00022054,3]
[356131643,1741936914466,-500.0,0.00022054,3]
[356131644,1741936914495,-500.0,0.00022054,3]
[356131645,1741936914525,-500.0,0.00022054,3]
[356131646,1741936914553,-510.93,0.00022054,3]
[356131647,1741936914583,-500.0,0.00022054,3]
[356131648,1741936914611,-500.0,0.00022054,3]
[356131649,1741936914640,-615.94,0.00022054,3]
[356131650,1741936914668,-500.0,0.00022054,3]
[356131651,1741936914699,-500.0,0.00022054,3]
[356131652,1741936914729,-500.0,0.00022054,3]
[356131653,1741936914758,-540.37,0.00022054,3]
[356131654,1741936914789,-500.0,0.00022054,3]
[356131655,1741936914818,-500.0,0.00022054,3]
[356131656,1741936914847,-500.0,0.00022054,3]
[356131657,1741936914876,-509.93,0.00022054,3]
[356131658,1741936914905,-596.66,0.00022054,3]
[356131659,1741936914935,-500.0,0.00022054,3]
[356131660,1741936914964,-741.98,0.00022054,3]
[356131661,1741936914994,-623.16079601,0.00022054,3]
[356131662,1741936915024,-500.0,0.00022054,3]
[356131663,1741936915054,-1220.36,0.00022054,3]
[356131664,1741936915083,-500.0,0.00022054,3]
[356131665,1741936915111,-500.0,0.00022054,3]
[356131666,1741936915140,-566.55,0.00022054,3]
[356131667,1741936915168,-500.0,0.00022054,3]
[356131668,1741936915196,-500.0,0.00022054,3]
[356131669,1741936915224,-500.0,0.00022054,3]
[356131670,1741936915252,-500.0,0.00022054,3]
[356131671,1741936915281,-614.84,0.00022054,3]
[356131672,1741936915310,-446.37867091,0.00022054,3]
[356131673,1741936915338,-500.0,0.00022054,3]
[356131674,1741936915366,-558.63,0.00022054,3]
[356131675,1741936915395,-386.07119323,0.00022054,3]
[356131676,1741936915424,-583.61,0.00022054,3]
[356131677,1741936915453,-500.0,0.00022054,3]
[356131678,1741936915481,-500.0,0.00022054,3]
[356131679,1741936915510,-867.64,0.00022054,3]
[356131680,1741936915539,-500.0,0.00022054,3]
[356131681,1741936915567,-500.0,0.00022054,3]
[356131682,1741936915596,-500.0,0.00022054,3]
[356131683,1741936915626,-1548.19,0.00022054,3]
[356131684,1741936915655,-559.82886409,0.00022054,3]
[356131685,1741936915686,-1354.02,0.00022054,3]
[356131686,1741936915715,-500.0,0.00022054,3]
[356131687,1741936915746,-500.0,0.00022054,3]
[356131688,1741936915779,-500.0,0.00022054,3]
[356131689,1741936915808,-500.0,0.00022054,3]
[356131690,1741936915839,-500.0,0.00022054,3]
[356131691,1741936915867,-500.0,0.00022054,3]
[356131692,1741936915896,-500.0,0.00022054,3]
[356131693,1741936915925,-500.0,0.00022054,3]
[356131694,1741936915954,-529.42,0.00022054,3]
[356131695,1741936915983,-500.0,0.00022054,3]
[356131696,1741936916013,-575.35,0.00022054,3]
[356131697,1741936916041,-500.0,0.00022054,3]
[356131698,1741936916069,-500.0,0.00022054,3]
[356131699,1741936916098,-500.0,0.00022054,3]
[356131700,1741936916126,-500.0,0.00022054,3]
[356131701,1741936916155,-500.0,0.00022054,3]
[356131702,1741936916185,-500.0,0.00022054,3]
[356131703,1741936916213,-597.12,0.00022054,3]
[356131704,1741936916242,-648.45,0.00022054,3]
[356131705,1741936916270,-500.0,0.00022054,3]
[356131706,1741936916298,-627.74,0.00022054,3]
[356131707,1741936916327,-500.0,0.00022054,3]
[356131708,1741936916354,-500.0,0.00022054,3]
[356131709,1741936916381,-691.7,0.00022054,3]
[356131710,1741936916410,-500.0,0.00022054,3]
[356131711,1741936916437,-500.0,0.00022054,3]
[356131712,1741936916464,-500.0,0.00022054,3]
[356131713,1741936916492,-500.0,0.00022054,3]
[356131714,1741936916520,-500.0,0.00022054,3]
[356131715,1741936916547,-500.0,0.00022054,3]
[356131716,1741936916574,-500.0,0.00022054,3]
[356131717,1741936916602,-500.0,0.00022054,3]
[356131718,1741936916629,-500.0,0.00022054,3]
[356131719,1741936916656,-692.8,0.00022054,3]
[356131720,1741936916686,-820.39,0.00022054,3]
[356131721,1741936916714,-500.0,0.00022054,3]
[356131722,1741936916741,-500.0,0.00022054,3]
[356131723,1741936916770,-500.0,0.00022054,3]
[356131724,1741936916798,-500.0,0.00022054,3]
[356131725,1741936916826,-500.0,0.00022054,3]
[356131726,1741936916853,-831.57,0.00022054,3]
[356131727,1741936916882,-500.0,0.00022054,3]
[356131728,1741936916910,-500.0,0.00022054,3]
[356131729,1741936916938,-2030.3,0.00022054,3]
[356131730,1741936916966,-500.0,0.00022054,3]
[356131731,1741936917170,-3639.46,0.00022054,3]
[356131732,1741936917203,-1846.63,0.00022054,3]
[356131733,1741936917232,-480.852658,0.00022054,3]
[356131734,1741936917262,-1224.97,0.00022054,3]
[356131735,1741936917290,-1644.43,0.00022054,3]
[356131736,1741936917317,-875.7,0.00022054,3]
[356131737,1741936917345,-1493.72,0.00022054,3]
[356131738,1741936917372,-616.8,0.00022054,3]
[356131739,1741936917400,-500.0,0.00022054,3]
[356131740,1741936917428,-500.0,0.00022054,3]
[356131741,1741936917455,-500.0,0.00022054,3]
[356131742,1741936917481,-534.7,0.00022054,3]
[356131743,1741936917509,-528.18,0.00022054,3]
[356131744,1741936917537,-1825.29,0.00022054,3]
[356131745,1741936917565,-500.0,0.00022054,3]
[356131746,1741936917593,-500.0,0.00022054,3]
[356131747,1741936917620,-500.0,0.00022054,3]
[356131748,1741936917648,-500.0,0.00022054,3]
[356131749,1741936917683,-500.0,0.00022054,3]
[356131750,1741936917713,-500.0,0.00022054,3]
[356131751,1741936917742,-500.0,0.00022054,3]
[356131752,1741936917772,-500.0,0.00022054,3]
[356131753,1741936917802,-500.0,0.00022054,3]
[356131754,1741936917831,-1450.38,0.00022054,3]
[356131755,1741936917860,-960.85,0.00022054,3]
[356131756,1741936917889,-500.0,0.00022054,3]
[356131757,1741936917916,-500.0,0.00022054,3]
[356131758,1741936917944,-2324.14,0.00022054,3]
[356131759,1741936917972,-500.0,0.00022054,3]
[356131760,1741936918000,-500.0,0.00022054,3]
[356131761,1741936918029,-910.74,0.00022054,3]
[356131762,1741936918057,-580.87948805,0.00022054,3]
[356131763,1741936918086,-601.73,0.00022054,3]
[356131764,1741936918114,-500.0,0.00022054,3]
[356131765,1741936918143,-151.0,0.00022054,7]
[356131766,1741936918170,-530.29,0.00022054,3]
[356131767,1741936918198,-1089.91,0.00022054,3]
[356131768,1741936918226,-500.0,0.00022054,3]
[356131769,1741936918254,-500.0,0.00022054,3]
[356131770,1741936918284,-561.64,0.00022054,3]
[356131771,1741936918314,-500.0,0.00022054,3]
[356131772,1741936918342,-500.0,0.00022054,3]
[356131773,1741936918372,-500.0,0.00022054,3]
[356131774,1741936918402,-500.0,0.00022054,3]
[356131775,1741936918431,-500.0,0.00022054,3]
[356131776,1741936918460,-500.0,0.00022054,3]
[356131777,1741936918490,-500.0,0.00022054,3]
[356131778,1741936918520,-558.43390176,0.00022054,3]
[356131779,1741936918551,-500.0,0.00022054,3]
[356131780,1741936918579,-500.0,0.00022054,3]
[356131781,1741936918609,-614.74,0.00022054,3]
[356131782,1741936918639,-977.71,0.00022054,3]
[356131783,1741936918667,-500.0,0.00022054,3]
[356131784,1741936918700,-500.0,0.00022054,3]
[356131785,1741936918729,-1144.59,0.00022054,3]
[356131786,1741936918759,-500.0,0.00022054,3]
[356131787,1741936918791,-828.55,0.00022054,3]
[356131788,1741936918820,-500.0,0.00022054,3]
[356131789,1741936918849,-523.87,0.00022054,3]
[356131790,1741936918878,-565.79,0.00022054,3]
[356131791,1741936918906,-602.5,0.00022054,3]
[356131792,1741936918933,-500.0,0.00022054,3]
[356131793,1741936918961,-500.0,0.00022054,3]
[356131794,1741936918989,-500.0,0.00022054,3]
[356131795,1741936919017,-500.0,0.00022054,3]
[356131796,1741936919045,-500.0,0.00022054,3]
[356131797,1741936919073,-1550.67,0.00022054,3]
[356131798,1741936919102,-500.0,0.00022054,3]
[356131799,1741936919131,-500.0,0.00022054,3]
[356131800,1741936919159,-700.51,0.00022054,3]
[356131801,1741936919188,-500.0,0.00022054,3]
[356131802,1741936919216,-500.0,0.00022054,3]
[356131803,1741936919245,-500.0,0.00022054,3]
[356131804,1741936919274,-500.0,0.00022054,3]
[356131805,1741936919302,-500.0,0.00022054,3]
[356131806,1741936919331,-597.26124271,0.00022054,3]
[356131807,1741936919360,-687.0,0.00022054,3]
[356131808,1741936919388,-500.0,0.00022054,3]
[356131809,1741936919417,-500.0,0.00022054,3]
[356131810,1741936919444,-500.0,0.00022054,3]
[356131811,1741936919480,-500.0,0.00022054,3]
[356131812,1741936919509,-500.0,0.00022054,3]
[356131813,1741936919541,-500.0,0.00022054,3]
[356131814,1741936919580,-500.0,0.00022054,3]
[356131815,1741936919615,-500.0,0.00022054,3]
[356131816,1741936919644,-500.0,0.00022054,3]
[356131817,1741936919673,-500.0,0.00022054,3]
[356131818,1741936919707,-500.0,0.00022054,3]
[356131819,1741936919738,-817.75,0.00022054,3]
[356131820,1741936919767,-500.0,0.00022054,3]
[356131821,1741936919796,-820.47,0.00022054,3]
[356131822,1741936919825,-713.63,0.00022054,3]
[356131823,1741936919854,-500.0,0.00022054,3]
[356131824,1741936919884,-500.0,0.00022054,3]
[356131825,1741936919913,-531.82604805,0.00022054,3]
[356131826,1741936919942,-500.0,0.00022054,3]
[356131827,1741936919970,-500.0,0.00022054,3]
[356131828,1741936919999,-500.0,0.00022054,3]
[356131829,1741936920029,-500.0,0.00022054,3]
[356131830,1741936920059,-500.0,0.00022054,3]